bitfinex-derivatives/quotes_ETHF0:USTF0_20250616
["timestamp","ask_amount","ask_price","bid_price","bid_amount"]
[1750038082940,0.78914,2534.0,2533.9,6.869]
[1750038083442,0.79504973,2534.1,2533.9,7.65816]
[1750038083637,0.00591973,2534.1,2534.0,0.78914]
[1750038083838,0.00591973,2534.1,2533.9,6.869]
[1750038084036,0.79504973,2534.1,2533.9,7.65816]
[1750038084232,0.00591973,2534.1,2533.9,8.97566]
[1750038084442,0.79503973,2534.1,2533.9,8.97565]
[1750038084633,0.79503973,2534.1,2533.9,8.97566]
[1750038085038,0.78914,2534.0,2533.9,8.1865]
[1750038085943,0.00591973,2534.1,2533.9,7.65817]
[1750038086139,0.78914,2534.0,2533.9,6.869]
[1750038086346,0.79504973,2534.1,2533.9,6.869]
[1750038086645,0.79504973,2534.1,2533.9,7.65816]
[1750038087141,0.00591973,2534.1,2533.9,7.65816]
[1750038087346,0.00591973,2534.1,2534.0,0.78914]
[1750038087545,0.79502973,2534.1,2534.0,0.78914]
[1750038087847,0.79502973,2534.1,2534.0,1.3236]
[1750038088147,0.00591973,2534.1,2534.0,2.11274]
[1750038088446,0.79502973,2534.1,2534.0,8.98074]
[1750038088747,0.79502973,2534.1,2534.0,8.1916]
[1750038089536,0.79502973,2534.1,2534.0,6.868]
[1750038091247,0.78925,2533.7,2533.6,25.169]
[1750038091552,0.78923,2533.7,2533.6,32.81625]
[1750038091754,0.78923,2533.7,2533.6,32.027]
[1750038092450,0.78922,2533.8,2533.6,32.027]
[1750038092645,0.78923,2533.8,2533.7,0.78923]
[1750038092846,0.78923,2533.8,2533.6,32.81624]
[1750038093054,3.21371973,2534.1,2533.6,32.027]
[1750038093253,0.78923,2533.7,2533.6,32.027]
[1750038093856,0.78927,2533.6,2533.5,25.95728]
[1750038094044,0.78927,2533.6,2533.5,32.81528]
[1750038094247,0.9172,2533.9,2533.5,32.026]
[1750038094447,0.78922,2533.8,2533.6,0.78925]
[1750038094647,0.78922,2533.8,2533.6,2.14005]
[1750038095048,0.78923,2533.7,2533.6,2.14005]
[1750038095248,0.78923,2533.7,2533.6,1.3508]
[1750038095662,0.78923,2533.8,2533.7,0.78921]
[1750038096250,0.78923,2533.7,2533.6,2.14004]
[1750038097050,0.78923,2533.7,2533.6,2.14007]
[1750038097359,0.9172,2533.9,2533.6,1.3508]
[1750038097554,0.7892,2533.8,2533.7,0.78923]
[1750038097860,0.7892,2533.8,2533.6,2.14004]
[1750038098059,0.9172,2533.9,2533.7,0.78923]
[1750038098357,0.78923,2533.7,2533.6,2.14005]
[1750038098856,0.78923,2533.8,2533.7,0.78923]
[1750038099360,0.9172,2533.9,2533.7,0.78923]
[1750038099555,0.7892,2533.8,2533.7,0.78923]
[1750038100161,0.7892,2533.8,2533.7,0.78922]
[1750038100460,0.78921,2533.8,2533.7,0.78921]
[1750038101748,0.78923,2533.8,2533.7,0.78923]
[1750038101955,0.78923,2533.8,2533.6,5.83826696]
[1750038101956,4.00284973,2534.1,2533.9,0.78915]
[1750038102156,4.00284973,2534.1,2534.0,0.78914]
[1750038102356,0.00591973,2534.1,2534.0,0.78914]
[1750038102759,3.2078,2534.7,2534.2,1.97266]
[1750038102957,3.2078,2534.7,2534.6,5.27639696]
[1750038103162,3.2078,2534.7,2534.6,46.07639696]
[1750038104058,3.99673,2534.7,2534.6,45.28746696]
[1750038104263,0.78892,2534.8,2534.6,46.07642696]
[1750038104562,0.78892,2534.8,2534.7,6.858]
[1750038105164,0.9972,2535.0,2534.7,6.858]
[1750038105367,1.78605,2535.0,2534.8,0.78888]
[1750038105566,0.9972,2535.0,2534.9,0.78886]
[1750038105756,0.78882,2535.1,2534.9,0.78886]
[1750038106464,4.2042,2535.4,2534.9,4.48746696]
[1750038106650,4.2042,2535.4,2535.0,1.2663]
[1750038106856,0.78877,2535.2,2535.1,6.857]
[1750038107053,0.78876,2535.3,2535.1,6.857]
[1750038107352,4.2042,2535.4,2535.1,7.64579]
[1750038107353,4.99293,2535.4,2535.1,7.64579]
[1750038107556,4.99293,2535.4,2535.2,0.78877]
[1750038107764,3.2078,2535.4,2535.3,0.78874]
[1750038107968,3.2078,2535.4,2535.2,5.27621696]
[1750038108464,3.99651,2535.4,2535.3,1.2663]
[1750038109060,3.2078,2535.4,2534.9,7.69526696]
[1750038109263,0.78883,2535.0,2534.9,3.2078]
[1750038109473,0.78883,2535.0,2534.9,35.2138]
[1750038109860,0.78883,2535.0,2534.9,35.2128]
[1750038110267,0.78879,2535.2,2534.9,40.48911696]
[1750038110570,4.5586,2535.4,2534.9,41.79361696]
[1750038110760,4.5586,2535.4,2534.9,38.58581696]
[1750038111268,3.99653,2535.4,2534.9,37.79696696]
[1750038111469,3.99653,2535.4,2535.1,0.78878]
[1750038111470,0.78875,2535.3,2535.1,0.78878]
[1750038111862,0.78877,2535.2,2535.1,0.78878]
[1750038112063,3.99652,2535.4,2534.9,37.79696696]
[1750038112268,3.99653,2535.4,2535.2,0.78876]
[1750038112470,3.99651,2535.4,2535.3,6.856]
[1750038112879,3.2078,2536.1,2535.3,15.0638]
[1750038113165,3.2078,2536.1,2535.6,4.48746696]
[1750038113166,0.78861,2535.8,2535.6,4.48746696]
[1750038113468,0.78868,2535.5,2535.4,0.00591973]
[1750038113767,3.99648,2535.5,2535.4,6.86191973]
[1750038113970,3.99648,2535.5,2535.4,0.00591973]
[1750038114161,3.99648,2535.5,2535.4,6.86191973]
[1750038114474,3.99648,2535.5,2535.4,6.86091973]
[1750038117767,0.78866,2535.6,2535.4,12.13706669]
[1750038118069,0.78868,2535.5,2535.4,0.00591973]
[1750038118275,0.78868,2535.5,2535.4,6.86091973]
[1750038118475,0.78868,2535.5,2535.4,0.00591973]
[1750038118687,0.78868,2535.5,2535.4,6.86091973]
[1750038119176,1.77908,2535.5,2535.4,6.86091973]
[1750038120466,1.77908,2535.5,2535.4,7.64962973]
[1750038120664,1.77908,2535.5,2535.4,6.86091973]
[1750038120969,1.77908,2535.5,2535.4,6.85991973]
[1750038121176,3.07138,2535.5,2535.4,6.85991973]
[1750038121372,3.07138,2535.5,2535.4,6.84691973]
[1750038122082,3.07138,2535.5,2535.4,0.00591973]
[1750038122571,1.97178,2535.4,2535.0,6.841]
[1750038122777,0.7888,2535.1,2535.0,6.841]
[1750038122969,3.99659,2535.2,2535.0,11.32846696]
[1750038123279,4.1982,2535.5,2535.0,14.53626696]
[1750038123475,0.78873,2535.4,2535.3,0.78873]
[1750038123776,3.21371973,2535.5,2535.4,0.78871]
[1750038123980,0.9809,2535.9,2535.8,0.78858]
[1750038124277,0.78844,2536.3,2536.1,0.78848]
[1750038124487,0.78841,2536.4,2536.2,6.842]
[1750038124673,0.78843,2536.3,2536.2,6.842]
[1750038124879,0.78846,2536.2,2536.1,3.2078]
[1750038125075,0.78846,2536.2,2536.1,10.0498]
[1750038125379,0.9809,2536.5,2536.1,10.0498]
[1750038125572,0.78846,2536.2,2536.1,10.0498]
[1750038126182,0.9809,2536.5,2536.1,10.0498]
[1750038126680,0.9809,2536.5,2536.1,10.83828]
[1750038126880,0.78837,2536.5,2536.4,7.69526696]
[1750038127082,3.2078,2537.4,2536.4,14.53626696]
[1750038127083,0.78835,2536.6,2536.4,14.53626696]
[1750038127280,0.78832,2536.7,2536.4,16.69605696]
[1750038127481,1.9433,2536.9,2536.4,11.4202]
[1750038127679,0.78837,2536.5,2536.4,10.0488]
[1750038128084,0.78836,2536.6,2536.4,10.0488]
[1750038128282,0.78812,2537.3,2536.4,14.53626696]
[1750038128479,1.957,2537.0,2536.2,1.32481973]
[1750038128685,3.31111,2536.9,2536.3,31.969]
[1750038128983,1.3405,2536.9,2536.3,31.969]
[1750038129176,1.957,2537.0,2536.8,4.48746696]
[1750038129377,2.74523,2537.0,2536.8,11.32846696]
[1750038129574,1.957,2537.0,2536.8,11.32846696]
[1750038129780,0.78814,2537.3,2536.8,11.32846696]
[1750038129973,3.2078,2537.7,2537.1,8.48342696]
[1750038130174,3.2078,2537.7,2537.2,1.3189]
[1750038130492,3.2078,2537.7,2537.4,4.48746696]
[1750038130790,3.9958,2537.7,2537.5,1.32]
[1750038130991,3.2078,2537.7,2537.6,0.78802]
[1750038131183,0.78799,2537.7,2537.6,7.8557]
[1750038131381,0.78799,2537.7,2537.6,6.84]
[1750038131887,0.78806,2537.5,2537.4,69.1308]
[1750038132076,0.78804,2537.6,2537.4,44.0078]
[1750038132281,0.78806,2537.5,2537.4,45.3278]
[1750038132482,0.78804,2537.6,2537.5,6.84]
[1750038135289,0.78806,2537.5,2537.4,3.2078]
[1750038135589,0.78809,2537.4,2537.3,40.8]
[1750038135775,0.78809,2537.4,2537.3,6.837]
[1750038135979,0.78818,2537.1,2537.0,10.0448]
[1750038136382,0.78818,2537.1,2537.0,3.2078]
[1750038136588,0.78821,2537.0,2536.9,6.837]
[1750038136785,0.78824,2536.9,2536.8,23.851]
[1750038136976,0.7884,2536.4,2536.3,3.2078]
[1750038137182,0.7884,2536.4,2536.3,10.0448]
[1750038137377,0.7884,2536.4,2536.3,11.4071]
[1750038137579,3.2078,2537.2,2536.3,46.00556696]
[1750038137783,0.78825,2536.9,2536.7,7.69526696]
[1750038137978,3.2078,2537.2,2536.8,8.1993]
[1750038138180,1.8806,2537.3,2536.9,0.78824]
[1750038138376,5.17792,2537.6,2536.9,0.78824]
[1750038138377,0.78816,2537.2,2537.0,5.84976696]
[1750038138588,0.78818,2537.1,2537.0,5.84976696]
[1750038138788,3.2078,2537.6,2537.0,15.89456696]
[1750038138992,0.78814,2537.3,2537.0,15.89456696]
[1750038139186,0.78815,2537.2,2537.0,16.68276696]
[1750038139587,0.78818,2537.1,2537.0,4.5701]
[1750038139787,0.78818,2537.1,2537.0,10.0448]
[1750038139985,0.78818,2537.1,2537.0,6.837]
[1750038140189,0.78818,2537.1,2536.7,23.842]
[1750038140190,0.78827,2536.8,2536.7,23.842]
[1750038140392,0.78827,2536.8,2536.7,30.679]
[1750038141087,0.78827,2536.8,2536.7,35.16646696]
[1750038141290,0.78827,2536.8,2536.7,36.44796696]
[1750038141590,0.78827,2536.8,2536.7,31.9605]
[1750038141782,0.78827,2536.8,2536.7,30.679]
[1750038141987,0.78823,2537.0,2536.8,0.78826]
[1750038142185,0.78819,2537.1,2536.7,36.44796696]
[1750038142497,0.78815,2537.2,2537.0,5.27565696]
[1750038142694,0.78818,2537.1,2537.0,4.48746696]
[1750038142989,0.78818,2537.1,2537.0,13.49697696]
[1750038143293,0.78818,2537.1,2537.0,12.70876696]
[1750038143496,3.2078,2537.2,2536.8,1.012]
[1750038143686,0.78816,2537.2,2537.0,12.11264696]
[1750038143993,0.78815,2537.2,2537.1,65.908]
[1750038144194,0.78815,2537.2,2537.1,6.837]
[1750038144396,5.24535406,2537.5,2537.0,6.837]
[1750038144397,1.9703,2537.3,2537.0,6.837]
[1750038144693,0.78818,2537.1,2537.0,6.837]
[1750038144891,1.0189,2537.4,2537.0,6.837]
[1750038145101,0.78809,2537.4,2537.3,0.78812]
[1750038145291,4.1324,2537.8,2537.4,0.78809]
[1750038145492,0.78806,2537.5,2537.4,6.837]
[1750038145788,4.1324,2537.8,2537.4,6.837]
[1750038145997,0.78812,2537.3,2537.2,6.837]
[1750038146186,0.78818,2537.1,2537.0,3.2078]
[1750038146382,0.78818,2537.1,2537.0,10.83301]
[1750038146585,0.78817,2537.2,2537.1,0.78818]
[1750038146994,0.78818,2537.1,2537.0,10.0448]
[1750038147290,3.27517406,2537.5,2537.0,10.0448]
[1750038147493,0.06737406,2537.5,2537.0,3.2078]
[1750038147693,0.78809,2537.4,2537.3,0.7881]
[1750038147889,0.78813,2537.3,2537.2,0.78814]
[1750038148084,0.78813,2537.3,2537.2,0.78815]
[1750038148295,0.78815,2537.2,2537.1,74.83736]
[1750038148495,0.78813,2537.3,2537.2,0.78814]
[1750038148901,0.78813,2537.3,2537.1,74.83736]
[1750038149597,0.78815,2537.2,2537.1,74.83736]
[1750038149801,0.78815,2537.2,2537.1,74.0492]
[1750038149987,0.78815,2537.2,2537.1,40.8]
[1750038150405,0.78815,2537.2,2537.1,6.837]
[1750038150898,0.06737406,2537.5,2537.4,0.78809]
[1750038151400,0.78809,2537.4,2537.3,0.78812]
[1750038151595,0.78809,2537.4,2537.3,7.61712]
[1750038151803,0.85545406,2537.5,2537.4,0.78809]
[1750038152699,0.78809,2537.4,2537.3,6.829]
[1750038152887,0.78809,2537.4,2537.3,7.61712]
[1750038153094,0.06737406,2537.5,2537.3,6.829]
[1750038153308,0.06737406,2537.5,2537.4,0.78809]
[1750038153593,0.85543406,2537.5,2537.4,0.78809]
[1750038153796,0.06737406,2537.5,2537.4,0.78809]
[1750038154394,0.06737406,2537.5,2537.4,0.81843739]
[1750038154600,0.78806,2537.5,2537.4,0.03034739]
[1750038155602,0.72739154,2537.4,2537.3,3.2078]
[1750038156100,0.99973134,2537.4,2537.2,6.828]
[1750038156294,3.2078,2537.5,2537.2,6.828]
[1750038156295,1.74732,2537.3,2537.2,6.828]
[1750038156495,2.74700258,2537.3,2537.2,6.828]
[1750038156699,2.74700258,2537.3,2537.2,6.85828766]
[1750038157496,2.74700258,2537.3,2537.2,0.03028766]
[1750038157690,2.74700258,2537.3,2536.9,10.82404]
[1750038157691,0.72763468,2537.0,2536.9,10.82404]
[1750038157906,0.9436,2537.2,2536.9,10.0358]
[1750038158203,0.78819,2537.1,2537.0,0.78819]
[1750038158502,1.79913406,2537.2,2537.1,0.78818]
[1750038158798,0.06737406,2537.2,2537.1,0.78818]
[1750038158996,0.06737406,2537.2,2537.1,2.13768]
[1750038159203,0.78821,2537.0,2536.9,3.99603]
[1750038159402,0.78821,2537.0,2536.9,10.0358]
[1750038159600,0.78821,2537.0,2536.9,10.85369397]
[1750038160098,0.7882,2537.1,2537.0,0.7882]
[1750038160304,0.78821,2537.0,2536.9,10.85368397]
[1750038161201,0.7882,2537.1,2537.0,0.78821]
[1750038161605,0.75855603,2537.0,2536.9,10.0358]
[1750038161906,0.75855603,2537.0,2536.9,10.82404]
[1750038162596,0.06737406,2537.2,2536.9,10.82402]
[1750038162802,0.78821,2537.0,2536.9,10.82402]
[1750038163607,0.78821,2537.0,2536.9,10.0358]
[1750038164406,0.78821,2537.0,2536.9,10.82404]
[1750038164804,0.78821,2537.0,2536.9,10.85605418]
[1750038165106,0.78821,2537.0,2536.9,10.06781418]
[1750038165307,0.78821,2537.0,2536.9,10.85605418]
[1750038165900,0.06737406,2537.2,2536.9,10.06781418]
[1750038166110,0.78819,2537.1,2537.0,0.78819]
[1750038166905,0.75619582,2537.0,2536.9,10.82402]
[1750038167107,0.06737406,2537.2,2537.1,0.78818]
[1750038167309,0.06737406,2537.2,2536.9,10.0358]
[1750038167310,0.06737406,2537.2,2537.0,0.78818]
[1750038167502,0.85554406,2537.2,2537.1,6.829]
[1750038167702,0.85554406,2537.2,2537.1,7.61718]
[1750038167904,0.78821,2537.0,2536.9,4.5591]
[1750038168105,0.78821,2537.0,2536.9,10.0368]
[1750038168309,0.7882,2537.1,2536.9,10.0368]
[1750038168509,1.03937406,2537.2,2537.1,0.78818]
[1750038168705,0.85552406,2537.2,2537.1,0.78818]
[1750038169609,0.78818,2537.1,2537.0,6.828]
[1750038170614,0.78821,2537.0,2536.9,3.2078]
[1750038170818,0.85558406,2537.0,2536.9,3.2078]
[1750038171010,0.85558406,2537.0,2536.9,3.99604]
[1750038171407,0.85558406,2537.0,2536.9,10.82404]
[1750038172214,0.06737406,2537.0,2536.9,10.82404]
[1750038172419,0.06737406,2537.0,2536.9,10.82504]
[1750038172931,0.06737406,2537.0,2536.9,12.11524]
[1750038173812,0.85558406,2537.0,2536.9,3.2078]
[1750038174005,0.85558406,2537.0,2536.9,10.0368]
[1750038174406,0.85558406,2537.0,2536.9,6.829]
[1750038174602,1.85742994,2537.0,2536.9,6.829]
[1750038175415,4.12442994,2537.0,2536.9,6.829]
[1750038176006,0.78833,2536.6,2536.5,7.61737]
[1750038176217,0.78833,2536.6,2536.5,6.829]
[1750038176417,0.78833,2536.6,2536.5,7.62892413]
[1750038176711,0.78832,2536.7,2536.6,0.78833]
[1750038177110,0.78833,2536.6,2536.5,7.62889413]
[1750038177317,0.78833,2536.6,2536.5,7.64056164]
[1750038177618,0.78832,2536.7,2536.6,0.78832]
[1750038177812,0.78833,2536.6,2536.5,6.85219164]
[1750038178213,0.78833,2536.6,2536.5,6.86274773]
[1750038178417,0.78832,2536.7,2536.6,0.78832]
[1750038178720,0.78834,2536.6,2536.5,7.65108773]
[1750038178924,0.78834,2536.6,2536.5,8.97588773]
[1750038179219,0.78832,2536.7,2536.6,0.78832]
[1750038179516,0.78834,2536.6,2536.5,8.97588773]
[1750038179719,0.78834,2536.6,2536.5,8.18754773]
[1750038180023,0.78834,2536.6,2536.5,6.87444532]
[1750038181108,0.78834,2536.6,2536.5,0.04544532]
[1750038181311,0.78834,2536.6,2536.5,6.87444532]
[1750038181511,0.78833,2536.7,2536.5,9.1123685]
[1750038181717,2.25477406,2537.0,2536.5,9.1123685]
[1750038182016,1.78861469,2536.9,2536.8,0.78827]
[1750038182315,0.06737406,2537.0,2536.9,0.78824]
[1750038182506,0.06737406,2537.0,2536.9,13.05696318]
[1750038183123,0.06737406,2537.0,2536.9,14.4693085]
[1750038184014,0.06737406,2537.0,2536.9,14.48090904]
[1750038184213,0.85558406,2537.0,2536.9,10.08784586]
[1750038184413,0.85558406,2537.0,2536.9,0.05704586]
[1750038185016,4.99776046,2537.0,2536.9,0.05704586]
[1750038185222,0.72084141,2536.7,2536.6,3.2078]
[1750038185521,0.77795727,2536.5,2536.4,6.823]
[1750038186818,0.06737406,2536.6,2536.5,0.78837]
[1750038187022,0.78822,2537.0,2536.9,0.78823]
[1750038187328,0.7882,2537.1,2537.0,0.7882]
[1750038187526,1.78947622,2537.2,2537.0,4.47524518]
[1750038187828,0.78816,2537.2,2537.1,0.78818]
[1750038188019,2.65625,2537.3,2537.1,0.78818]
[1750038188324,0.78815,2537.2,2537.1,0.78818]
[1750038188625,2.65624,2537.3,2537.1,0.78818]
[1750038188822,0.78815,2537.2,2537.1,0.78818]
[1750038189318,0.9893,2537.3,2537.1,0.78818]
[1750038189520,0.8788,2537.6,2537.2,0.78813]
[1750038189726,0.78815,2537.2,2537.1,4.1502]
[1750038190117,0.8788,2537.6,2537.1,4.1502]
[1750038190420,0.7881,2537.4,2537.3,0.78811]
[1750038190618,0.9893,2537.7,2537.2,6.823]
[1750038190817,0.78807,2537.5,2537.3,0.9342]
[1750038191020,0.78807,2537.5,2537.3,1.7223]
[1750038191220,0.78807,2537.5,2537.4,0.78809]
[1750038191425,0.78809,2537.4,2537.3,1.7223]
[1750038191623,0.78809,2537.4,2537.3,0.9342]
[1750038191820,0.78809,2537.4,2537.1,4.1502]
[1750038191821,3.2078,2537.6,2537.1,4.1502]
[1750038192028,0.77645387,2537.2,2537.1,10.0308]
[1750038193025,0.77645387,2537.2,2537.1,10.04123001]
[1750038194320,0.77645387,2537.2,2537.1,10.05279682]
[1750038194732,3.2078,2537.6,2537.1,10.05279682]
[1750038195029,0.78806,2537.5,2537.3,8.47113518]
[1750038195226,4.1001,2537.9,2537.5,0.78806]
[1750038195418,1.00002479,2537.8,2537.7,0.78799]
[1750038195623,4.1024,2538.3,2537.8,0.78795]
[1750038195822,0.78798,2537.8,2537.6,9.58104518]
[1750038196022,1.9696,2538.2,2537.6,5.89381]
[1750038196230,7.0366,2538.3,2537.6,5.89381]
[1750038196231,0.76594318,2537.9,2537.7,0.78799]
[1750038196426,0.78797,2537.8,2537.7,0.78798]
[1750038196627,0.77640319,2537.8,2537.6,5.1058]
[1750038196926,5.067,2538.3,2537.6,5.1058]
[1750038197233,3.2078,2538.3,2538.2,4.47524518]
[1750038197529,0.78779,2538.4,2538.2,12.08606518]
[1750038197730,0.78781,2538.3,2538.2,6.823]
[1750038198026,3.2078,2538.3,2537.6,1.898]
[1750038198231,5.17737,2538.3,2537.6,1.898]
[1750038198433,1.9104,2538.2,2537.8,0.78796]
[1750038198636,0.78792,2538.0,2537.8,0.78796]
[1750038199029,0.78793,2537.9,2537.8,0.78796]
[1750038199333,0.78793,2537.9,2537.7,48.40997]
[1750038199632,0.78796,2537.8,2537.7,47.622]
[1750038200026,0.78795,2537.9,2537.7,48.40996]
[1750038200236,0.06737406,2537.8,2537.7,48.40999]
[1750038200438,0.85533406,2537.8,2537.7,47.622]
[1750038200931,0.85533406,2537.8,2537.7,48.40999]
[1750038201134,0.06737406,2537.8,2537.7,48.40999]
[1750038201430,0.85533406,2537.8,2537.7,47.622]
[1750038201620,0.85533406,2537.8,2537.7,40.8]
[1750038201822,0.85533406,2537.8,2537.7,47.622]
[1750038202235,0.78799,2537.7,2537.6,0.9832]
[1750038202431,0.78799,2537.7,2537.6,6.822]
[1750038202831,0.78802,2537.6,2537.5,0.00591973]
[1750038203129,1.67612,2537.6,2537.5,0.00591973]
[1750038203636,0.06737406,2537.8,2537.5,0.79395973]
[1750038204032,0.78802,2537.6,2537.5,0.00591973]
[1750038206833,1.67272,2537.6,2537.5,0.00591973]
[1750038207433,0.63947406,2537.8,2537.6,0.78801]
[1750038207632,0.63947406,2537.8,2537.7,3.99579]
[1750038207831,1.42743406,2537.8,2537.7,3.2078]
[1750038208634,1.42743406,2537.8,2537.6,2.576]
[1750038208635,0.78799,2537.7,2537.6,2.576]
[1750038208831,0.78802,2537.6,2537.5,0.00591973]
[1750038209136,0.78802,2537.6,2537.5,6.82791973]
[1750038209330,0.788,2537.7,2537.6,0.78801]
[1750038209535,0.63947406,2537.8,2537.7,0.78799]
[1750038209738,0.63947406,2537.8,2537.7,5.35349]
[1750038209941,0.63947406,2537.8,2537.7,11.25559]
[1750038210442,0.63947406,2537.8,2537.7,11.26716355]
[1750038210934,0.63947406,2537.8,2537.7,6.26716355]
[1750038211140,1.42743406,2537.8,2537.7,10.9319]
[1750038211441,1.42743406,2537.8,2537.7,10.9540978]
[1750038211633,1.42743406,2537.8,2537.7,10.0519978]
[1750038212131,0.63947406,2537.8,2537.7,15.31523298]
[1750038212843,0.63947406,2537.8,2537.7,16.31193298]
[1750038213639,0.63947406,2537.8,2537.7,11.8366878]
[1750038214141,0.63947406,2537.8,2537.7,16.31193298]
[1750038214434,0.7877,2538.7,2538.5,0.78774]
[1750038214938,1.8701,2538.8,2538.4,6.814]
[1750038215239,0.7655422,2538.5,2538.4,7.60178]
[1750038215440,0.78781,2538.3,2538.2,3.2078]
[1750038216141,1.8701,2538.8,2538.2,3.2078]
[1750038216433,0.78775,2538.5,2538.2,7.68304518]
[1750038216628,0.78775,2538.5,2538.2,9.05924518]
[1750038216834,3.1292,2538.8,2538.5,0.78774]
[1750038217032,0.78769,2538.7,2538.6,0.78771]
[1750038217233,0.78769,2538.7,2538.5,7.60073]
[1750038217436,0.77615372,2538.6,2538.5,6.813]
[1750038217839,0.7877,2538.7,2538.6,0.78771]
[1750038218040,0.78771,2538.6,2538.5,7.60072]
[1750038218238,3.1292,2538.8,2538.5,6.813]
[1750038218440,0.78771,2538.6,2538.5,7.60073]
[1750038218639,0.7877,2538.7,2538.6,0.7877]
[1750038218840,3.36552603,2539.2,2538.5,14.49604518]
[1750038219034,5.14896603,2539.2,2538.8,4.47524518]
[1750038219234,4.36142603,2539.2,2539.1,0.78756]
[1750038219541,4.36142603,2539.2,2539.0,0.78757]
[1750038219739,5.14897603,2539.2,2539.1,0.78756]
[1750038220032,0.78756,2539.1,2538.9,6.81890784]
[1750038220238,4.36142603,2539.2,2538.9,6.81890784]
[1750038220543,5.14897603,2539.2,2539.0,0.78757]
[1750038220739,4.36142603,2539.2,2538.9,0.00590784]
[1750038220938,0.78759,2539.0,2538.9,0.00590784]
[1750038221641,0.78759,2539.0,2538.9,0.79352784]
[1750038221832,1.366,2539.1,2538.9,0.79350784]
[1750038222032,4.36142603,2539.2,2538.9,0.00590784]
[1750038222233,5.14896603,2539.2,2539.1,0.78756]
[1750038222742,4.36142603,2539.2,2539.1,0.78756]
[1750038223039,0.78756,2539.1,2539.0,0.78758]
[1750038223236,0.15772603,2539.2,2539.1,0.78756]
[1750038223837,0.78756,2539.1,2539.0,0.78757]
[1750038224038,0.15772603,2539.2,2539.0,0.78757]
[1750038224238,0.15772603,2539.2,2539.1,0.78756]
[1750038225346,0.94525603,2539.2,2539.1,0.78756]
[1750038225551,0.15772603,2539.2,2539.1,0.78756]
[1750038225843,0.15772603,2539.2,2539.1,3.99536]
[1750038227137,6.03e-06,2539.2,2539.1,8.99536]
[1750038227337,5.17589,2540.2,2539.1,10.0198]
[1750038227338,3.2078,2539.8,2539.1,10.0198]
[1750038227534,0.78742,2539.6,2539.4,0.78745]
[1750038227738,0.78742,2539.6,2539.5,0.01169889]
[1750038228343,1.864,2539.9,2539.8,0.78734]
[1750038228535,1.0066,2540.3,2539.7,3.2078]
[1750038228741,1.0066,2540.3,2540.0,0.01169889]
[1750038228938,0.78725,2540.1,2540.0,0.01169889]
[1750038230446,5.78725,2540.1,2540.0,0.01169889]
[1750038230655,8.99505,2540.1,2540.0,0.01169889]
[1750038230949,0.78738,2539.7,2539.5,6.811]
[1750038231153,0.9231,2539.6,2539.5,6.811]
[1750038231847,1.7105,2539.6,2539.5,6.811]
[1750038232043,0.8641,2539.9,2539.5,6.811]
[1750038232243,1.7872,2539.9,2539.5,6.811]
[1750038232451,0.7874,2539.6,2539.5,6.811]
[1750038232956,0.78745,2539.5,2539.2,69.96561]
[1750038233154,3.2078,2539.8,2539.2,69.96561]
[1750038233155,0.78747,2539.4,2539.3,6.81]
[1750038233343,0.78743,2539.5,2539.4,0.78744]
[1750038233540,0.78743,2539.5,2539.3,8.94079]
[1750038233943,0.78747,2539.4,2539.3,1.3433]
[1750038234147,0.78747,2539.4,2539.3,6.81]
[1750038234746,0.78747,2539.4,2539.3,7.5975]
[1750038234942,0.78747,2539.4,2539.2,27.0348]
[1750038235147,0.78747,2539.4,2539.3,6.81]
[1750038236460,0.7875,2539.3,2539.2,27.0348]
[1750038236754,0.7875,2539.3,2539.2,33.8448]
[1750038237558,1.3761,2539.5,2539.3,0.78748]
[1750038237753,5.1762,2539.8,2539.2,34.63231]
[1750038238057,0.78749,2539.4,2539.3,0.7875]
[1750038238258,0.78749,2539.4,2539.3,3.0296]
[1750038238559,0.78749,2539.4,2539.3,2.2421]
[1750038238762,0.7875,2539.3,2539.2,33.8448]
[1750038239159,0.7875,2539.3,2539.2,27.0348]
[1750038239359,0.7875,2539.3,2539.2,33.8448]
[1750038239654,0.7875,2539.3,2539.2,27.0348]
[1750038240854,5.82552,2539.6,2539.2,31.51004518]
[1750038240855,4.64442,2539.6,2539.2,31.51004518]
[1750038241057,4.64442,2539.6,2539.5,0.78743]
[1750038241358,4.64442,2539.6,2539.5,7.59743]
[1750038241759,3.857,2539.6,2539.2,27.0348]
[1750038242062,0.7875,2539.3,2539.2,3.2078]
[1750038243860,0.78756,2539.1,2539.0,6.81]
[1750038244662,0.78754,2539.2,2539.0,6.81]
[1750038244861,0.06737406,2539.3,2539.2,0.78753]
[1750038245256,0.06737406,2539.3,2539.2,7.59253]
[1750038245760,0.06737406,2539.3,2539.2,12.59253]
[1750038245963,0.06737406,2539.3,2539.2,14.82554221]
[1750038246264,0.06737406,2539.3,2539.2,0.78753]
[1750038246458,0.85487406,2539.3,2539.2,75.67754221]
[1750038246654,0.06737406,2539.3,2539.2,75.67754221]
[1750038246960,0.06737406,2539.3,2539.2,40.8]
[1750038246961,0.85487406,2539.3,2539.2,40.8]
[1750038247266,0.06737406,2539.3,2539.2,48.39253]
[1750038247465,0.85487406,2539.3,2539.2,47.605]
[1750038247971,0.06737406,2539.3,2539.2,7.59253]
[1750038248765,0.06737406,2539.3,2539.2,12.05900551]
[1750038248962,0.9103,2540.0,2539.9,0.78731]
[1750038249163,1.8873327,2540.0,2539.9,0.78731]
[1750038249465,1.67844,2540.2,2539.7,52.07147551]
[1750038249664,0.7872,2540.3,2540.2,0.78722]
[1750038249865,1.7642324,2540.3,2540.2,0.78722]
[1750038250160,0.9770324,2540.3,2540.2,0.78722]
[1750038250360,4.099,2540.5,2540.3,0.78717]
[1750038250361,3.2078,2540.5,2540.3,0.78717]